{"text_format":"3","workbook":"xlsx","n_sheets":5,"sheets":["Part I. Narrative","Part II. Individuals Served","Part III. Class Table","Locked","Sheet1"],"not_rendered":{"defined_names":12},"read":"whole","date_system":"1900"}

{"sheet":"Part I. Narrative","index":0,"n_rows":88,"n_cols":13,"rows_kept":88,"merged":[[0,1,0,21],[1,1,1,21],[3,1,3,26],[4,1,4,21],[5,1,5,6],[5,7,5,21],[6,1,6,6],[6,7,6,21],[7,1,7,6],[7,7,7,21],[8,1,8,6],[8,7,8,21],[9,1,9,6],[9,7,9,21],[11,1,11,26],[12,1,12,26],[14,4,14,16],[15,4,15,16],[16,4,16,16],[17,4,17,16],[20,2,20,25],[23,1,23,30],[24,1,24,30],[25,1,25,5],[25,6,25,8],[25,9,25,11],[25,12,25,30],[26,1,26,5],[26,6,26,8],[26,9,26,11],[26,12,26,30],[27,1,27,5],[27,6,27,8],[27,9,27,11],[27,12,27,30],[28,1,28,5],[28,6,28,8],[28,9,28,11],[28,12,28,30],[29,1,29,5],[29,6,29,8],[29,9,29,11],[29,12,29,30],[30,1,30,5],[30,6,30,8],[30,9,30,11],[30,12,30,30],[31,1,31,5],[31,6,31,8],[31,9,31,11],[31,12,31,30],[32,1,32,5],[32,6,32,8],[32,9,32,11],[32,12,32,30],[33,1,33,5],[33,6,33,8],[33,9,33,11],[33,12,33,30],[34,1,34,5],[34,6,34,8],[34,9,34,11],[34,12,34,30],[35,1,35,5],[35,6,35,8],[35,9,35,11],[35,12,35,30],[36,1,36,5],[36,6,36,8],[36,9,36,11],[36,12,36,30],[37,1,37,5],[37,6,37,8],[37,9,37,11],[37,12,37,30],[38,1,38,5],[38,6,38,8],[38,9,38,11],[38,12,38,30],[39,1,39,5],[39,6,39,8],[39,9,39,11],[39,12,39,30],[40,1,40,5],[40,6,40,8],[40,9,40,11],[40,12,40,30],[41,1,41,5],[41,6,41,8],[41,9,41,11],[41,12,41,30],[42,1,42,5],[42,6,42,8],[42,9,42,11],[42,12,42,30],[43,1,43,5],[43,6,43,8],[43,9,43,11],[43,12,43,30],[44,1,44,5],[44,6,44,8],[44,9,44,11],[44,12,44,30],[45,1,45,5],[45,6,45,8],[45,9,45,11],[45,12,45,30],[46,1,46,5],[46,6,46,8],[46,9,46,11],[46,12,46,30],[47,1,47,5],[47,6,47,8],[47,9,47,11],[47,12,47,30],[48,1,48,5],[48,6,48,8],[48,9,48,11],[48,12,48,30],[49,1,49,5],[49,6,49,8],[49,9,49,11],[49,12,49,30],[50,1,50,5],[50,6,50,8],[50,9,50,11],[50,12,50,30],[51,1,51,5],[51,6,51,8],[51,9,51,11],[51,12,51,30],[52,1,52,5],[52,6,52,8],[52,9,52,11],[52,12,52,30],[53,1,53,5],[53,6,53,8],[53,9,53,11],[53,12,53,30],[54,1,54,5],[54,6,54,8],[54,9,54,11],[54,12,54,30],[55,1,55,5],[55,6,55,8],[55,9,55,11],[55,12,55,30],[56,1,56,5],[56,6,56,8],[56,9,56,11],[56,12,56,30],[57,1,57,5],[57,6,57,8],[57,9,57,11],[57,12,57,30],[58,1,58,5],[58,6,58,8],[58,9,58,11],[58,12,58,30],[59,1,59,5],[59,6,59,8],[59,9,59,11],[59,12,59,30],[60,1,60,5],[60,6,60,8],[60,9,60,11],[60,12,60,30],[61,1,61,5],[61,6,61,8],[61,9,61,11],[61,12,61,30],[63,1,63,25],[69,6,69,21],[70,2,70,24],[73,1,73,25],[74,1,74,25],[76,3,76,21],[77,4,77,21],[79,3,79,21],[80,4,80,21],[81,3,81,14],[82,3,82,14],[83,4,83,21],[84,3,84,14],[85,3,85,14],[87,3,87,14]]}
[null,"Citizenship and Integration Grant Program"]
[null," Quarterly Report"]
[]
[null,"OMB Control Number: 1615-NEW     Expiration Date: XX/XX/XXXX\nAn agency may not conduct or sponsor an information collection, and a person is not required to respondto a collection of information, unless it displays a valid OMB Control Number. The public reporting burden for this after award report collection of information is 28 hours.  This includes the time required for reviewing instructions and completing the form. Send comments regarding this burden estimate or any other aspect of this collection of information, including suggestions for reducing the burden, to U.S. Citizenship and Immigration Services, Regulatory Coordination Division, Office of Policy and Strategy, 20 Massachusetts Ave, NW, Washington, DC 20529-2140, OMB No. 1615-NEW. Do not mail your completed form to this address. Obligation to Respond:  Required to Obtain Benefits.\n"]
[null,"I. Grant Information"]
[null,"Organization:"]
[null,"Sub-Awardee Organization:"]
[null,"Name of Person Completing Report:"]
[null,"Quarter:"]
[null,"Date:"]
[]
[null,"II. Goals"]
[null,"Have you met your quarterly target for your core goals?  (You can find your goals in your Program Goals Chart.)"]
[]
[null,null,"Yes","No","Core Goals"]
[{"$nulls":4},"1. Number of newly enrolled non-duplicated LPRs to enroll in citizenship instruction classes"]
[{"$nulls":4},"2. Number of LPRs for whom you provide naturalization eligilbity screening"]
[{"$nulls":4},"3. Number of LPRS for whom you prepare and submit Form N-400 with Form G-28"]
[]
[null,"If you did not meet one or more of your goals, describe actions you have taken to improve performance and how you plan to meet your goals in the future:"]
[]
[]
[]
[null,"III. Accomplishments and Challenges"]
[null,"Identify specific accomplishments and challenges during the quarter. Place a checkmark in the appropriate column and then provide an explanation of the accomplishment or challenge. You do not need a checkmark for each topic; choose the most relevant topics for this quarter."]
[null,"Topics",{"$nulls":4},"Accomplishments",null,null,"Challenges",null,null,"Explanation"]
[null,"Citizenship Instruction"]
[null,"Student recruitment"]
[null,"Student retention "]
[null,"Student assessment"]
[null,"Student improvement"]
[null,"Curriculum development"]
[null,"Managing different student levels"]
[null,"Citizenship instruction"]
[null,"Development of citizenship materials (Please attach any new resources)"]
[null,"Following up with students on naturalization outcomes"]
[null,"Special events (field trips, USCIS visit, celebrations, etc.)"]
[null,"Other citizenship instruction topic"]
[null,"Naturalization Application Services"]
[null,"Client recruitment"]
[null,"Client intake"]
[null,"Client eligibility for naturalization"]
[null,"Naturalization application preparation and filing"]
[null,"Complex naturalization cases"]
[null,"BIA recognition and accreditation"]
[null,"Following up with clients on naturalization outcomes"]
[null,"Special events (info sessions, workshops, etc.)"]
[null,"Other naturalization application services topic"]
[null,"Personnel"]
[null,"Hiring new staff"]
[null,"Staff turnover"]
[null,"Staff training/development"]
[null,"Volunteer recruitment, retention, placement"]
[null,"Other personnel topic"]
[null,"Program Administration"]
[null,"Outreach and advertising"]
[null,"Partnerships"]
[null,"Budget"]
[null,"Data management and reporting"]
[null,"Library initiatives"]
[null,"Press about the grant program"]
[null,"Other topics"]
[]
[null,"IV. Staff Changes"]
[null,"Have you made any staff changes during the quarter?  "]
[]
[{"$nulls":3},"Yes"]
[]
[{"$nulls":3},"No"]
[null,"If yes, please explain:"]
[]
[]
[]
[null,"V. BIA Recognition and Accreditation"]
[null,"Indicate your progress towards BIA recognition and/or accreditation. Place a checkmark next to the appropriate response, and provide additional detail if requested."]
[]
[{"$nulls":3},"Received BIA recognition/accreditation during the quarter. Provide employee name, title, and date accreditation expires:"]
[]
[]
[{"$nulls":3},"Renewed BIA accreditation during the quarter. Provide employee name, title, and date accreditation expires:"]
[]
[]
[{"$nulls":3},"Pursuing BIA recognition/accreditation. Describe progress made during the quarter:"]
[]
[]
[{"$nulls":3},"Already BIA recognized and accredited. No changes to report."]
[]
[{"$nulls":3},"N/A, only attorneys provide naturalization application services."]

{"sheet":"Part II. Individuals Served","index":1,"n_rows":3,"n_cols":27,"rows_kept":3}
["GranteeOrgName","Quarter","AlienNumber","CountryofBirth","DateEnrolled","ClassNumber","ClassLevel","HoursInClass","PrePostTestUsed","PreTestScore","PostTestScore","DateScreenedbyGrantee","PreviouslyFiledN400","DateN400FiledByGrantee","DateG28FiledbyGrantee","N648FiledbyGrantee","FeeWaiverFiledbyGrantee","DateRFERespFiledbyGrantee","GranteeLegalRepatInterview","Date1stNatzTestPassed","Date1stNatzTestFailed","Date2ndNatzTestPassed","Date2ndNatzTestFailed","DateOathTaken"]
[{"$nulls":26},"Q2"]
[{"$nulls":24},"Q1"]

{"sheet":"Part III. Class Table","index":2,"n_rows":37,"n_cols":13,"rows_kept":37}
["Grantee Org Name","Class Name","Class Number ","Class Level","Name of Instructor(s)","# of Aids/ Tutors","Date Class Started","Date Class Ended","Schedule (Days/Hrs)","# of Class Hours per Week","# of Weeks per Class Cycle","Total Instructional Hours Offered","Total Enrolled Students"]
[{"$nulls":11},{"$f":"J2*K2","v":0}]
[{"$nulls":11},0]
[{"$nulls":11},0]
[{"$nulls":11},0]
[{"$nulls":11},0]
[{"$nulls":11},0]
[{"$nulls":11},0]
[{"$nulls":11},0]
[{"$nulls":11},0]
[{"$nulls":11},0]
[{"$nulls":11},0]
[{"$nulls":11},0]
[{"$nulls":11},0]
[{"$nulls":11},0]
[{"$nulls":11},0]
[{"$nulls":11},0]
[{"$nulls":11},0]
[{"$nulls":11},0]
[{"$nulls":11},0]
[{"$nulls":11},0]
[{"$nulls":11},0]
[{"$nulls":11},0]
[{"$nulls":11},0]
[{"$nulls":11},0]
[{"$nulls":11},0]
[{"$nulls":11},0]
[{"$nulls":11},0]
[{"$nulls":11},0]
[{"$nulls":11},0]
[{"$nulls":11},0]
[{"$nulls":11},0]
[{"$nulls":11},0]
[{"$nulls":11},0]
[{"$nulls":11},0]
[{"$nulls":11},0]
["TOTALS",{"$nulls":10},{"$f":"SUM(L2:L36)","v":0},{"$f":"SUM(M2:M36)","v":0}]

{"sheet":"Locked","index":3,"n_rows":199,"n_cols":6,"rows_kept":199,"hidden":true}
["Yes","BEST","Beginning ESL Literacy","Afghanistan","Ansob Center for Refugees Inc.","Q1"]
[null,"CASAS","Low Beginning","Albania","Hispanic Unity of Florida","Q2"]
[null,"TABE","High Beginning","Algeria","Hartford Public Library","Q3"]
[null,null,"Low Intermediate","American Samoa","Catholic Charities of the Diocese of Santa Rosa","Q4"]
[null,null,"High Intermediate","Angola","Access California Services","Q5"]
[null,null,"Advanced","Anguilla","Baltimore City Community College","Q6"]
[null,null,"Multi-level","Antigua-Barbuda","Boat People SOS ","Q7"]
[null,null,"Language Exempt","Argentina","Brooklyn Public Library","Q8"]
[null,null,"Formal Tutoring","Armenia","Catholic Charities of Central Texas"]
[{"$nulls":3},"Aruba","Catholic Charities of Dallas Inc."]
[{"$nulls":3},"Australia","Catholic Charities of the Diocese of Stockton"]
[{"$nulls":3},"Austria","Catholic Charities San Bernardino and Riverside Counties"]
[{"$nulls":3},"Azerbaijan","Catholic Migration Services Inc."]
[{"$nulls":3},"Bahamas","Central American Resource Center"]
[{"$nulls":3},"Bahrain","Chinese American Service League  Inc."]
[{"$nulls":3},"Bangladesh","Church World Service Inc."]
[{"$nulls":3},"Barbados","The City University of New York"]
[{"$nulls":3},"Belarus","Ecumenical Ministries of Oregon"]
[{"$nulls":3},"Belgium","Hope Community Center"]
[{"$nulls":3},"Belize","International Rescue Committee Inc."]
[{"$nulls":3},"Benin","Jewish Family and Children’s Service of Pittsburgh"]
[{"$nulls":3},"Bermuda","Jewish Vocational Service of MetroWest Inc."]
[{"$nulls":3},"Bhutan","La Casa de Don Pedro Inc."]
[{"$nulls":3},"Bolivia","Lancaster-Lebanon Intermediate Unit 13"]
[{"$nulls":3},"Bosnia-Herzegovina","Littleton Immigrant Resources Center"]
[{"$nulls":3},"Botswana","Lutheran Social Services of Metropolitan New York"]
[{"$nulls":3},"Brazil","Lutheran Social Services of South Dakota"]
[{"$nulls":3},"British Virgin Islands","Mid-Minnesota Legal Assistance"]
[{"$nulls":3},"Brunei","Nashville Adult Literacy Council"]
[{"$nulls":3},"Bulgaria","Neighborhood House"]
[{"$nulls":3},"Burkina Faso","Northern Manhattan Coalition for Immigrants’ Rights"]
[{"$nulls":3},"Burma","Polish American Association"]
[{"$nulls":3},"Burundi","Tacoma Community House"]
[{"$nulls":3},"Cambodia","United Methodist Cooperative Ministries/Suncoast Inc."]
[{"$nulls":3},"Cameroon","US Together Inc."]
[{"$nulls":3},"Canada","YMCA of Greater Houston"]
[{"$nulls":3},"Cape Verde"]
[{"$nulls":3},"Cayman Islands"]
[{"$nulls":3},"Central African Republic"]
[{"$nulls":3},"Chad"]
[{"$nulls":3},"Chile"]
[{"$nulls":3},"China, People's Republic"]
[{"$nulls":3},"Colombia"]
[{"$nulls":3},"Congo, Democratic Republic"]
[{"$nulls":3},"Congo, Republic"]
[{"$nulls":3},"Costa Rica"]
[{"$nulls":3},"Cote d'Ivoire"]
[{"$nulls":3},"Croatia"]
[{"$nulls":3},"Cuba"]
[{"$nulls":3},"Cyprus"]
[{"$nulls":3},"Czech Republic"]
[{"$nulls":3},"Czechoslovakia (former)"]
[{"$nulls":3},"Denmark"]
[{"$nulls":3},"Djibouti"]
[{"$nulls":3},"Dominica"]
[{"$nulls":3},"Dominican Republic"]
[{"$nulls":3},"Ecuador"]
[{"$nulls":3},"Egypt"]
[{"$nulls":3},"El Salvador"]
[{"$nulls":3},"Equatorial Guinea"]
[{"$nulls":3},"Eritrea"]
[{"$nulls":3},"Estonia"]
[{"$nulls":3},"Ethiopia"]
[{"$nulls":3},"Fiji"]
[{"$nulls":3},"Finland"]
[{"$nulls":3},"France"]
[{"$nulls":3},"French Polynesia"]
[{"$nulls":3},"Gabon"]
[{"$nulls":3},"Gambia"]
[{"$nulls":3},"Georgia"]
[{"$nulls":3},"Germany"]
[{"$nulls":3},"Ghana"]
[{"$nulls":3},"Greece"]
[{"$nulls":3},"Grenada"]
[{"$nulls":3},"Guatemala"]
[{"$nulls":3},"Guinea"]
[{"$nulls":3},"Guinea-Bissau"]
[{"$nulls":3},"Guyana"]
[{"$nulls":3},"Haiti"]
[{"$nulls":3},"Honduras"]
[{"$nulls":3},"Hong Kong"]
[{"$nulls":3},"Hungary"]
[{"$nulls":3},"Iceland"]
[{"$nulls":3},"India"]
[{"$nulls":3},"Indonesia"]
[{"$nulls":3},"Iran"]
[{"$nulls":3},"Iraq"]
[{"$nulls":3},"Ireland"]
[{"$nulls":3},"Israel"]
[{"$nulls":3},"Italy"]
[{"$nulls":3},"Jamaica"]
[{"$nulls":3},"Japan"]
[{"$nulls":3},"Jordan"]
[{"$nulls":3},"Kazakhstan"]
[{"$nulls":3},"Kenya"]
[{"$nulls":3},"Korea, North"]
[{"$nulls":3},"Korea, South"]
[{"$nulls":3},"Kosovo"]
[{"$nulls":3},"Kuwait"]
[{"$nulls":3},"Kyrgyzstan"]
[{"$nulls":3},"Laos"]
[{"$nulls":3},"Latvia"]
[{"$nulls":3},"Lebanon"]
[{"$nulls":3},"Lesotho"]
[{"$nulls":3},"Liberia"]
[{"$nulls":3},"Libya"]
[{"$nulls":3},"Lithuania"]
[{"$nulls":3},"Luxembourg"]
[{"$nulls":3},"Macau"]
[{"$nulls":3},"Macedonia"]
[{"$nulls":3},"Madagascar"]
[{"$nulls":3},"Malawi"]
[{"$nulls":3},"Malaysia"]
[{"$nulls":3},"Mali"]
[{"$nulls":3},"Malta"]
[{"$nulls":3},"Marshall Islands"]
[{"$nulls":3},"Mauritania"]
[{"$nulls":3},"Mauritius"]
[{"$nulls":3},"Mexico"]
[{"$nulls":3},"Micronesia, Federated States"]
[{"$nulls":3},"Moldova"]
[{"$nulls":3},"Mongolia"]
[{"$nulls":3},"Montenegro"]
[{"$nulls":3},"Montserrat"]
[{"$nulls":3},"Morocco"]
[{"$nulls":3},"Mozambique"]
[{"$nulls":3},"Namibia"]
[{"$nulls":3},"Nepal"]
[{"$nulls":3},"Netherlands"]
[{"$nulls":3},"Netherlands Antilles"]
[{"$nulls":3},"New Zealand"]
[{"$nulls":3},"Nicaragua"]
[{"$nulls":3},"Niger"]
[{"$nulls":3},"Nigeria"]
[{"$nulls":3},"Norway"]
[{"$nulls":3},"Oman"]
[{"$nulls":3},"Pakistan"]
[{"$nulls":3},"Palau"]
[{"$nulls":3},"Panama"]
[{"$nulls":3},"Papua New Guinea"]
[{"$nulls":3},"Paraguay"]
[{"$nulls":3},"Peru"]
[{"$nulls":3},"Philippines"]
[{"$nulls":3},"Poland"]
[{"$nulls":3},"Portugal"]
[{"$nulls":3},"Qatar"]
[{"$nulls":3},"Romania"]
[{"$nulls":3},"Russia"]
[{"$nulls":3},"Rwanda"]
[{"$nulls":3},"Saint Kitts-Nevis"]
[{"$nulls":3},"Saint Lucia"]
[{"$nulls":3},"Saint Vincent and the Grenadines"]
[{"$nulls":3},"Samoa"]
[{"$nulls":3},"Saudi Arabia"]
[{"$nulls":3},"Senegal"]
[{"$nulls":3},"Serbia"]
[{"$nulls":3},"Serbia and Montenegro"]
[{"$nulls":3},"Seychelles"]
[{"$nulls":3},"Sierra Leone"]
[{"$nulls":3},"Singapore"]
[{"$nulls":3},"Slovakia"]
[{"$nulls":3},"Slovenia"]
[{"$nulls":3},"Somalia"]
[{"$nulls":3},"South Africa"]
[{"$nulls":3},"South Sudan"]
[{"$nulls":3},"Soviet Union (former)"]
[{"$nulls":3},"Spain"]
[{"$nulls":3},"Sri Lanka"]
[{"$nulls":3},"Sudan"]
[{"$nulls":3},"Suriname"]
[{"$nulls":3},"Swaziland"]
[{"$nulls":3},"Sweden"]
[{"$nulls":3},"Switzerland"]
[{"$nulls":3},"Syria"]
[{"$nulls":3},"Taiwan"]
[{"$nulls":3},"Tajikistan"]
[{"$nulls":3},"Tanzania"]
[{"$nulls":3},"Thailand"]
[{"$nulls":3},"Togo"]
[{"$nulls":3},"Tonga"]
[{"$nulls":3},"Trinidad and Tobago"]
[{"$nulls":3},"Tunisia"]
[{"$nulls":3},"Turkey"]
[{"$nulls":3},"Turkmenistan"]
[{"$nulls":3},"Turks and Caicos Islands"]
[{"$nulls":3},"Uganda"]
[{"$nulls":3},"Ukraine"]
[{"$nulls":3},"United Arab Emirates"]
[{"$nulls":3},"United Kingdom"]
[{"$nulls":3},"United States"]
[{"$nulls":3},"Uruguay"]
[{"$nulls":3},"Uzbekistan"]
[{"$nulls":3},"Venezuela"]
[{"$nulls":3},"Vietnam"]
[{"$nulls":3},"Yemen"]
[{"$nulls":3},"Zambia"]
[{"$nulls":3},"Zimbabwe"]
[{"$nulls":3},"All other countries"]
[{"$nulls":3},"Unknown"]

{"sheet":"Sheet1","index":4,"n_rows":40,"n_cols":1,"rows_kept":40,"hidden":true}
["Asian Counseling and Referral Service"]
["Asian Services in Action, Inc."]
["Baltimore City Community College"]
["Boat People SOS, Inc."]
["Catholic Charities of the Diocese of Santa Rosa"]
["Catholic Charities of the Diocese of Stockton "]
["Catholic Charities of Northeast Kansas"]
["Catholic Charities of San Bernardino and Riverside Counties"]
["Catholic Charities of Santa Clara County"]
["Catholic Migration Services, Inc."]
["Center for People in Need"]
["Central American Resource Center"]
["Chinese American Service League, Inc."]
["Church World Service, Inc."]
["City of Littleton"]
["Coalition for Humane Immigrant Rights of Los Angeles"]
["Colombian American Service Association (CASA)"]
["Council for the Spanish Speaking, Inc."]
["Ecumenical Ministries of Oregon"]
["Federation Employment and Guidance Services, Inc."]
["Fresno Unified School District"]
["Hartford Public Library"]
["Hispanic Unity of Florida, Inc."]
["Hope Community Center, Inc."]
["Horizon Cross Cultural Center"]
["International Institute of Metropolitan Detroit"]
["International Rescue Committee, Inc. (Atlanta)"]
["International Rescue Committee, Inc. (Los Angeles)"]
["International Rescue Committee, Inc. (Miami)"]
["Jewish Family & Children's Service, Inc. (Pittsburgh)"]
["Jewish Family and Children's Service, Inc. (Waltham)"]
["Literacy Volunteers of Charlottesville/ Albemarle"]
["Lutheran Social Services of South Dakota"]
["Lutheran Social Services of the Southwest"]
["Mid-Minnesota Legal Assistance"]
["Nashville Adult Literacy Council, Inc."]
["Northern Manhattan Coalition for Immigrant Rights"]
["Refugee Aid Project"]
["World Relief Corporation of National Association of Evangelicals"]
["Young Men's Christian Association of the Greater Houston Area, Inc."]